bitfinex/quotes_BTCUSD_20250102
["timestamp","ask_amount","ask_price","bid_price","bid_amount"]
[1735846224631,0.410152,97525.0,97520.0,4.895e-05]
[1735846224834,0.355079,97523.0,97520.0,4.895e-05]
[1735846225095,0.45906532,97523.0,97520.0,4.895e-05]
[1735846226709,0.46006532,97523.0,97520.0,4.895e-05]
[1735846226912,0.46006532,97523.0,97522.0,0.0010856]
[1735846227329,0.46006532,97523.0,97522.0,8.56e-05]
[1735846227516,0.45906532,97523.0,97522.0,8.56e-05]
[1735846229333,0.58206532,97523.0,97522.0,8.56e-05]
[1735846229872,0.59184271,97523.0,97522.0,8.56e-05]
[1735846230027,0.59184271,97523.0,97522.0,6e-07]
[1735846230233,0.62043953,97523.0,97522.0,6e-07]
[1735846230431,0.65105637,97523.0,97522.0,6e-07]
[1735846230676,0.65105637,97523.0,97522.0,0.0010006]
[1735846231012,0.61943953,97523.0,97522.0,0.0010006]
[1735846231219,0.61943953,97523.0,97522.0,6e-07]
[1735846231424,0.62143953,97523.0,97522.0,6e-07]
[1735846232392,0.62343953,97523.0,97522.0,6e-07]
[1735846232553,0.65508301,97523.0,97522.0,6e-07]
[1735846232991,0.65108301,97523.0,97522.0,6e-07]
[1735846233559,0.65208301,97523.0,97522.0,6e-07]
[1735846233864,0.273,97521.0,97520.0,4.895e-05]
[1735846234076,0.4086298,97521.0,97520.0,4.895e-05]
[1735846234588,0.3086298,97521.0,97520.0,4.895e-05]
[1735846234833,0.31322662,97521.0,97520.0,4.895e-05]
[1735846235038,0.2866298,97521.0,97520.0,4.895e-05]
[1735846235326,0.31422662,97521.0,97520.0,4.895e-05]
[1735846235527,0.2866298,97521.0,97520.0,4.895e-05]
[1735846236154,0.25498632,97521.0,97520.0,4.895e-05]
[1735846236385,0.28671514,97521.0,97520.0,4.895e-05]
[1735846236944,0.001,97521.0,97520.0,4.895e-05]
[1735846237148,0.206084,97521.0,97520.0,4.895e-05]
[1735846237783,0.205084,97521.0,97520.0,4.895e-05]
[1735846237986,0.206084,97521.0,97520.0,4.895e-05]
[1735846238392,0.23787079,97521.0,97520.0,4.895e-05]
[1735846238599,0.34185711,97521.0,97520.0,4.895e-05]
[1735846238889,0.205094,97516.0,97515.0,0.0758]
[1735846239193,0.205123,97502.0,97501.0,0.0779]
[1735846240162,0.205123,97502.0,97501.0,0.15030318]
[1735846240322,0.03184116,97502.0,97501.0,0.15030318]
[1735846240531,0.03584116,97502.0,97501.0,0.15030318]
[1735846241109,0.004,97502.0,97501.0,0.15030318]
[1735846241516,0.03586143,97502.0,97501.0,0.15030318]
[1735846242578,0.04286143,97502.0,97501.0,0.15030318]
[1735846242807,0.24798443,97502.0,97501.0,0.15030318]
[1735846243002,0.24798443,97502.0,97501.0,0.15038878]
[1735846243238,0.24798443,97502.0,97501.0,0.0779856]
[1735846243643,0.24798443,97502.0,97501.0,8.56e-05]
[1735846245310,0.23698443,97502.0,97501.0,8.56e-05]
[1735846245708,0.23898443,97502.0,97501.0,8.56e-05]
[1735846249067,0.23798443,97502.0,97501.0,8.56e-05]
[1735846249607,0.23898443,97502.0,97501.0,8.56e-05]
[1735846249834,0.23798443,97502.0,97501.0,8.56e-05]
[1735846250236,0.23898443,97502.0,97501.0,8.56e-05]
[1735846250462,0.23898443,97502.0,97500.0,0.06049128]
[1735846250463,0.23898443,97502.0,97500.0,0.05957688]
[1735846250609,0.03186143,97501.0,97500.0,0.05957688]
[1735846251408,0.02759682,97498.0,97487.0,0.0144345]
[1735846251637,0.355153,97488.0,97487.0,0.0144345]
[1735846251838,0.49100075,97488.0,97487.0,0.0144345]
[1735846252930,0.49104959,97488.0,97487.0,0.0144345]
[1735846253128,0.51504959,97488.0,97487.0,0.0144345]
[1735846253331,0.61504959,97488.0,97487.0,0.0144345]
[1735846253553,0.1,97476.0,97457.0,0.06276119]
[1735846253758,0.205216,97458.0,97457.0,0.06276119]
[1735846253962,0.23707743,97458.0,97457.0,0.06276119]
[1735846254986,0.23707743,97458.0,97457.0,0.06325127]
[1735846255779,0.04135454,97458.0,97457.0,0.06325127]
[1735846255980,0.03286143,97458.0,97457.0,0.34087245]
[1735846256381,0.03286143,97458.0,97457.0,1.84087245]
[1735846257030,0.001,97458.0,97457.0,1.84087245]
[1735846257683,0.001,97458.0,97457.0,1.63565445]
[1735846257881,0.001,97458.0,97457.0,1.84387245]
[1735846258333,0.205194,97469.0,97457.0,1.84387245]
[1735846258538,0.03192596,97468.0,97464.0,0.07240318]
[1735846259693,0.09175649,97490.0,97461.0,0.1]
[1735846259694,0.03192764,97479.0,97475.0,0.07240318]
[1735846259893,0.09175649,97490.0,97480.0,0.07240318]
[1735846260129,0.205162,97484.0,97480.0,0.07240318]
[1735846260338,0.0319243,97483.0,97480.0,0.07240318]
[1735846260551,0.205166,97482.0,97480.0,0.07240318]
[1735846260735,0.0319243,97481.0,97480.0,0.07240318]
[1735846261467,0.03192334,97481.0,97480.0,0.07240318]
[1735846261763,0.03192334,97481.0,97480.0,0.07440318]
[1735846261969,0.03192334,97481.0,97480.0,0.07240318]
[1735846262172,0.03292334,97481.0,97480.0,0.07640318]
[1735846262329,0.03392334,97481.0,97480.0,0.08540318]
[1735846263071,0.03392334,97481.0,97480.0,0.013]
[1735846263285,0.002,97481.0,97480.0,0.07540318]
[1735846265564,0.002,97481.0,97480.0,1.57540318]
[1735846268186,0.002,97481.0,97480.0,1.7617752]
[1735846268802,0.001,97481.0,97480.0,1.7617752]
[1735846269006,0.205111,97509.0,97503.0,0.07240318]
[1735846270329,0.205111,97509.0,97503.0,0.07255043]
[1735846270513,0.205117,97506.0,97503.0,0.07255043]
[1735846271210,0.21467775,97512.0,97503.0,0.07255043]
[1735846271350,0.00957475,97512.0,97503.0,0.07855043]
[1735846271558,0.0001712,97520.0,97504.0,0.27752218]
[1735846271805,0.205096,97516.0,97504.0,0.27752218]
[1735846272004,0.0001712,97520.0,97513.0,0.07240318]
[1735846272211,0.0001712,97520.0,97515.0,0.1]
[1735846272728,0.0001712,97520.0,97513.0,0.07240318]
[1735846273241,0.0001712,97520.0,97515.0,0.006]
[1735846274434,0.0001712,97520.0,97515.0,0.002]
[1735846274834,0.0001712,97520.0,97506.0,1.5]
[1735846274835,0.496939,97486.0,97480.0,8.57e-05]
[1735846275035,0.355168,97481.0,97480.0,8.57e-05]
[1735846275238,0.45915432,97481.0,97480.0,8.57e-05]
[1735846276044,0.45915432,97481.0,97480.0,0.0020857]
[1735846276197,0.45930083,97481.0,97480.0,0.0010857]
[1735846276415,0.48230083,97481.0,97480.0,0.0010857]
[1735846276611,0.205199,97466.0,97465.0,0.09009337]
[1735846277067,0.205212,97460.0,97443.0,0.0796]
[1735846277478,0.410424,97460.0,97443.0,0.0796]
[1735846278229,0.411424,97460.0,97457.0,0.07176119]
[1735846280164,0.001,97460.0,97457.0,0.07176119]
[1735846280673,0.09175649,97473.0,97457.0,0.06284689]
[1735846280847,0.09175649,97473.0,97459.0,0.205214]
[1735846281056,0.09175649,97473.0,97464.0,0.205202]
[1735846281190,0.09175649,97473.0,97461.0,0.20521]
[1735846281386,0.09175649,97473.0,97461.0,0.30919632]
[1735846281649,0.09175649,97473.0,97469.0,1.5]
[1735846282253,0.09275649,97473.0,97469.0,1.5]
[1735846282454,0.09175649,97473.0,97469.0,1.5]
[1735846282889,0.34281373,97476.0,97469.0,1.5]
[1735846282890,0.205179,97476.0,97469.0,1.5]
[1735846283127,0.205172,97479.0,97461.0,0.002]
[1735846283308,0.205172,97479.0,97457.0,0.06284689]
[1735846283309,0.15,97478.0,97457.0,0.06284689]
[1735846283472,0.205209,97462.0,97457.0,0.06284689]
[1735846283879,0.410418,97462.0,97457.0,0.06284689]
[1735846284506,0.410418,97462.0,97457.0,0.06884689]
[1735846284679,0.410418,97462.0,97457.0,0.06284689]
[1735846285180,0.42132602,97462.0,97457.0,0.07184689]
[1735846285370,0.42132602,97462.0,97457.0,0.06284689]
[1735846285570,0.42232602,97462.0,97457.0,0.07284689]
[1735846286185,0.42132602,97462.0,97457.0,0.06784689]
[1735846286443,0.42132602,97462.0,97457.0,0.06984689]
[1735846286857,0.42032602,97462.0,97457.0,0.06484689]
[1735846287166,0.42032602,97462.0,97457.0,0.06984689]
[1735846290270,0.205216,97458.0,97457.0,0.06984689]
[1735846290473,0.21511702,97462.0,97457.0,0.06984689]
[1735846290599,0.205209,97462.0,97457.0,0.06984689]
[1735846291195,0.00991214,97465.0,97457.0,0.06984689]
[1735846291458,0.00991214,97465.0,97463.0,0.205205]
[1735846291655,0.09175649,97476.0,97463.0,0.205205]
[1735846291861,0.09175649,97476.0,97464.0,0.0466]
[1735846292074,0.09175649,97476.0,97470.0,0.20519]
[1735846292274,0.09175649,97476.0,97474.0,0.205181]
[1735846292847,0.18365949,97481.0,97474.0,0.205181]
[1735846292848,0.00014651,97481.0,97474.0,0.205181]
[1735846293266,0.00014651,97481.0,97474.0,0.410363]
[1735846293668,0.002,97476.0,97474.0,0.205181]
[1735846293845,0.002,97476.0,97474.0,0.209181]
[1735846294039,0.002,97476.0,97475.0,1.5]
[1735846294452,0.00014651,97481.0,97476.0,0.205178]
[1735846294655,0.00014651,97481.0,97477.0,0.0799]
[1735846295381,0.00014651,97481.0,97478.0,0.205174]
[1735846295584,0.00014651,97481.0,97478.0,0.30916032]
[1735846295790,0.00014651,97481.0,97479.0,0.10398632]
[1735846296842,0.00014651,97481.0,97475.0,0.009]
[1735846296843,0.455178,97476.0,97475.0,0.009]
[1735846297189,0.15,97459.0,97433.0,0.18018675]
[1735846297378,0.45920232,97458.0,97433.0,0.18018675]
[1735846297589,0.45920232,97458.0,97422.0,0.27036573]
[1735846297590,0.45920232,97458.0,97439.0,0.09009337]
[1735846297977,0.49110059,97458.0,97439.0,0.09009337]
[1735846298377,0.38711427,97458.0,97439.0,0.09009337]
[1735846298586,0.355216,97458.0,97439.0,0.09009337]
[1735846298798,0.355216,97458.0,97432.0,8.55e-05]
[1735846299616,0.358216,97458.0,97432.0,8.55e-05]
[1735846300218,0.359216,97458.0,97432.0,8.55e-05]
[1735846300419,0.358216,97458.0,97432.0,8.55e-05]
[1735846300596,0.361216,97458.0,97432.0,8.55e-05]
[1735846302214,0.47483534,97458.0,97432.0,8.55e-05]
[1735846304427,0.50671804,97458.0,97432.0,8.55e-05]
[1735846307064,0.47483534,97458.0,97432.0,8.55e-05]
[1735846307450,0.50672871,97458.0,97432.0,8.55e-05]
[1735846308306,0.47483534,97458.0,97432.0,8.55e-05]
[1735846308486,0.50676427,97458.0,97432.0,8.55e-05]
[1735846309162,0.8214825,97458.0,97457.0,1.5e-07]
[1735846309408,0.205269,97433.0,97432.0,8.55e-05]
[1735846310782,0.0011464,97433.0,97432.0,0.0090855]
[1735846311355,0.0011464,97433.0,97432.0,0.0120855]
[1735846313059,0.0011464,97433.0,97432.0,1.5120855]
[1735846315225,0.0011464,97433.0,97432.0,1.5909855]
[1735846315930,0.0011464,97433.0,97432.0,0.0909855]
[1735846316359,0.0011464,97433.0,97432.0,1.5909855]
[1735846317865,0.0011464,97433.0,97432.0,0.0909855]
[1735846320605,0.0011464,97433.0,97432.0,0.0120855]
[1735846320816,0.2064154,97433.0,97432.0,0.0120855]
[1735846321239,0.53800172,97433.0,97432.0,0.0120855]
[1735846321460,0.56994485,97433.0,97432.0,0.0120855]
[1735846322033,0.38835853,97433.0,97432.0,0.0090855]
[1735846322449,0.38735853,97433.0,97432.0,8.55e-05]
[1735846322855,0.38735853,97433.0,97432.0,0.0010855]
[1735846323676,0.38835853,97433.0,97432.0,0.0010855]
[1735846324736,0.38835853,97433.0,97422.0,7e-07]
[1735846324737,0.15,97427.0,97422.0,7e-07]
[1735846324938,0.1,97404.0,97403.0,8.56e-05]
[1735846325150,0.173,97399.0,97379.0,0.000102]
[1735846325349,0.205355,97392.0,97379.0,0.000102]
[1735846326421,0.205355,97392.0,97391.0,0.01492458]
[1735846327300,0.21208572,97392.0,97391.0,0.01492458]
[1735846327494,0.205355,97392.0,97391.0,0.01492458]
[1735846327635,0.205355,97392.0,97391.0,0.01992458]
[1735846328022,0.206355,97392.0,97391.0,0.01492458]
[1735846328203,0.207355,97392.0,97391.0,0.01492458]
[1735846329716,0.207355,97392.0,97391.0,0.01501028]
[1735846331605,0.207355,97392.0,97391.0,1.51501028]
[1735846332369,0.206355,97392.0,97391.0,1.51501028]
[1735846332616,0.001,97392.0,97391.0,1.51501028]
[1735846332824,0.205352,97394.0,97391.0,1.51501028]
[1735846333022,0.001,97392.0,97391.0,1.51501028]
[1735846333453,0.205352,97394.0,97391.0,1.51501028]
[1735846333649,0.205352,97394.0,97391.0,1.52201028]
[1735846333650,0.001,97392.0,97391.0,1.52201028]
[1735846333862,0.002,97392.0,97391.0,1.52201028]
[1735846334236,0.001,97392.0,97391.0,0.02201028]
[1735846334615,0.001,97392.0,97391.0,0.02401028]
[1735846335106,0.001,97392.0,97391.0,0.02201028]
[1735846335346,0.001,97392.0,97391.0,0.02401028]
[1735846337800,0.001,97392.0,97391.0,0.1740966]
[1735846338030,0.001,97392.0,97391.0,0.568736]
[1735846338539,0.001,97392.0,97391.0,2.066736]
[1735846338774,0.001,97392.0,97391.0,2.068736]
[1735846339729,0.20529,97423.0,97411.0,0.205314]
[1735846340429,0.20529,97423.0,97413.0,0.205311]
[1735846341166,0.20529,97423.0,97414.0,1.5]
[1735846341414,0.15,97426.0,97414.0,1.705307]
[1735846341644,0.01027453,97437.0,97415.0,0.0785]
[1735846341862,0.1472,97458.0,97415.0,0.0785]
[1735846341863,0.1222,97458.0,97425.0,0.205285]
[1735846342084,0.075,97458.0,97420.0,0.0472]
[1735846342294,0.205252,97442.0,97421.0,0.10398632]
[1735846343168,0.20539842,97442.0,97429.0,0.205276]
[1735846344305,0.00014642,97442.0,97433.0,0.205267]
[1735846344510,0.001,97437.0,97433.0,0.205267]
[1735846345380,0.00014642,97442.0,97437.0,0.205259]
[1735846345611,0.00014642,97442.0,97433.0,0.205267]
[1735846346077,0.00014642,97442.0,97439.0,0.410511]
[1735846346312,0.00014642,97442.0,97440.0,0.0771]
[1735846346527,0.00014642,97442.0,97441.0,0.205252]
[1735846347206,0.00014642,97442.0,97441.0,0.30923832]
[1735846348098,0.00014642,97442.0,97441.0,0.31323832]
[1735846348323,0.00014642,97442.0,97441.0,0.004]
[1735846348558,0.00014642,97442.0,97391.0,0.0145202]
[1735846348559,0.1,97428.0,97391.0,0.0145202]
[1735846348810,0.205345,97397.0,97391.0,0.0145202]
[1735846349273,0.228349,97395.0,97391.0,0.0145202]
[1735846350205,0.205351,97394.0,97391.0,0.0145202]
[1735846350425,0.205351,97394.0,97391.0,0.01501028]
[1735846351905,0.205351,97394.0,97391.0,0.01701028]
[1735846352267,0.208351,97394.0,97391.0,0.01801028]
[1735846352475,0.205351,97394.0,97391.0,0.01701028]
[1735846352878,0.205351,97394.0,97391.0,0.02301028]
[1735846355647,0.205345,97397.0,97391.0,0.02301028]
[1735846355870,0.205353,97393.0,97391.0,0.02301028]
[1735846356694,0.205353,97393.0,97391.0,0.01501028]
[1735846357047,0.205353,97393.0,97391.0,0.02301028]
[1735846357687,0.205345,97397.0,97391.0,0.02201028]
[1735846358054,0.205345,97397.0,97391.0,0.02401028]
[1735846358678,0.205345,97397.0,97391.0,0.02201028]
[1735846359090,0.205345,97397.0,97391.0,0.01501028]
[1735846359856,0.205345,97397.0,97391.0,0.02001028]
[1735846360426,0.205345,97397.0,97391.0,0.02101028]
[1735846360641,0.205345,97397.0,97392.0,1.5]
[1735846361380,0.41069,97397.0,97392.0,1.5]
[1735846361590,0.205345,97397.0,97392.0,1.5]
[1735846361791,0.205345,97397.0,97392.0,1.501]
[1735846362911,0.205345,97397.0,97392.0,1.506]
[1735846364212,0.205345,97397.0,97392.0,0.006]
[1735846364440,0.205352,97394.0,97392.0,0.006]
[1735846365223,0.205347,97396.0,97392.0,0.005]
[1735846365460,0.205347,97396.0,97392.0,8.55e-05]
[1735846365843,0.205347,97396.0,97392.0,0.0060855]
[1735846366043,0.205347,97396.0,97392.0,8.55e-05]
[1735846366250,0.410695,97396.0,97392.0,8.55e-05]
[1735846366483,0.205351,97394.0,97392.0,0.0050855]
[1735846366613,0.023,97393.0,97392.0,0.0050855]
[1735846367057,0.023,97393.0,97392.0,0.0070855]
[1735846367532,0.023,97393.0,97392.0,0.0050855]
[1735846368280,0.205347,97396.0,97392.0,0.0050855]
[1735846368679,0.205347,97396.0,97392.0,8.55e-05]
[1735846368889,0.023,97395.0,97392.0,0.0010855]
[1735846369092,0.205351,97394.0,97392.0,8.55e-05]
[1735846369612,0.023,97395.0,97392.0,8.55e-05]
[1735846369830,0.023,97398.0,97392.0,8.55e-05]
[1735846370046,0.0919422,97409.0,97392.0,8.55e-05]
[1735846370303,0.023,97403.0,97392.0,8.55e-05]
[1735846370525,0.023,97403.0,97392.0,1.5000855]
[1735846370770,0.001,97396.0,97392.0,1.5000855]
[1735846370985,0.001,97396.0,97393.0,0.410705]
[1735846371216,0.0919422,97409.0,97394.0,0.1]
[1735846371425,0.0919422,97416.0,97401.0,0.205336]
[1735846371630,0.0919422,97416.0,97401.0,1.705336]
[1735846372051,0.0919422,97416.0,97401.0,1.80932232]
[1735846372268,0.15,97420.0,97401.0,1.89222232]
[1735846372686,0.15,97420.0,97401.0,1.90022232]
[1735846372859,0.0919422,97422.0,97401.0,1.90022232]
[1735846373107,0.0919422,97422.0,97401.0,1.99222232]
[1735846373316,0.0919422,97422.0,97401.0,2.00122232]
[1735846373535,0.01606266,97425.0,97401.0,2.00122232]
[1735846374382,0.01606266,97425.0,97401.0,2.00522232]
[1735846374511,0.01606266,97425.0,97401.0,1.90522232]
[1735846374717,0.01606266,97425.0,97401.0,1.89622232]
[1735846374917,0.01606266,97425.0,97401.0,1.89222232]
[1735846375144,0.0091714,97402.0,97401.0,1.90222232]
[1735846375345,0.0091714,97402.0,97401.0,1.89322232]
[1735846375777,0.0111714,97402.0,97401.0,1.89422232]
[1735846376006,0.0091714,97402.0,97401.0,1.89322232]
[1735846376202,0.0091714,97402.0,97401.0,1.89422232]
[1735846376453,0.0021714,97402.0,97401.0,1.89322232]
[1735846376823,0.0111714,97402.0,97401.0,1.89422232]
[1735846377505,0.0111714,97402.0,97401.0,1.99422232]
[1735846381540,0.0111714,97402.0,97401.0,0.39422232]
[1735846385606,0.0111714,97402.0,97401.0,1.89422232]
[1735846386017,0.0111714,97402.0,97401.0,1.99422232]
[1735846386217,0.0111714,97402.0,97401.0,2.09422232]
[1735846386501,0.0111714,97402.0,97401.0,2.14402232]
[1735846386707,0.0111714,97402.0,97401.0,2.29402232]
[1735846388628,0.0111714,97402.0,97401.0,2.29410782]
[1735846392280,0.0111714,97402.0,97401.0,1.81140782]
[1735846394703,0.1000714,97402.0,97401.0,8.55e-05]
[1735846395129,0.1000714,97402.0,97401.0,0.0110855]
[1735846395570,0.39985772,97402.0,97401.0,0.0110855]
[1735846395815,0.43183534,97402.0,97401.0,0.0110855]
[1735846396033,0.44790111,97402.0,97401.0,0.0110855]
[1735846396935,0.58581441,97402.0,97401.0,0.0110855]
[1735846397491,0.58581441,97402.0,97401.0,0.0030855]
[1735846397696,0.58581441,97402.0,97401.0,0.0010855]
[1735846398268,0.77518939,97402.0,97401.0,0.0010855]
[1735846399396,0.9590738,97402.0,97401.0,0.0010855]
[1735846400404,1.04300803,97402.0,97401.0,0.0010855]
[1735846400810,0.85912362,97402.0,97401.0,0.0010855]
[1735846400934,0.85912362,97402.0,97401.0,8.55e-05]
[1735846401361,0.86212362,97402.0,97401.0,8.55e-05]
[1735846402187,0.378353,97393.0,97392.0,8.55e-05]
[1735846402386,0.51431694,97393.0,97392.0,8.55e-05]
[1735846402803,0.63931694,97393.0,97392.0,8.55e-05]
[1735846403646,1.19673177,97393.0,97392.0,8.55e-05]
[1735846404338,1.19873177,97393.0,97392.0,8.55e-05]
[1735846404721,1.19673177,97393.0,97392.0,8.55e-05]
[1735846405146,1.20273177,97393.0,97392.0,8.55e-05]
[1735846405733,1.21304187,97393.0,97392.0,8.55e-05]
[1735846405961,1.16690604,97393.0,97392.0,8.55e-05]
[1735846406482,1.08692842,97393.0,97392.0,8.55e-05]
[1735846407488,0.66761631,97393.0,97392.0,8.55e-05]
[1735846408399,0.57564942,97393.0,97392.0,8.55e-05]
[1735846409529,0.80754728,97393.0,97392.0,8.55e-05]
[1735846409811,0.80754728,97393.0,97379.0,0.000102]
[1735846409812,0.35538,97380.0,97379.0,0.000102]
[1735846410044,0.59696418,97380.0,97379.0,0.00015094]
[1735846411919,0.89181064,97380.0,97379.0,0.00015094]
[1735846412163,0.92173884,97380.0,97379.0,0.00015094]
[1735846412404,0.378383,97379.0,97376.0,8.89e-06]
[1735846412643,0.378387,97377.0,97376.0,8.89e-06]
[1735846412767,0.51424604,97377.0,97376.0,8.89e-06]
[1735846413227,0.51424023,97377.0,97376.0,8.89e-06]
[1735846413676,0.48237332,97377.0,97376.0,8.89e-06]
[1735846414378,0.57423559,97377.0,97376.0,8.89e-06]
[1735846414581,0.57723559,97377.0,97376.0,8.89e-06]
[1735846414816,0.7090972,97377.0,97376.0,8.89e-06]
[1735846415215,0.7110972,97377.0,97376.0,8.89e-06]
[1735846415453,0.61923493,97377.0,97376.0,8.89e-06]
[1735846416499,0.51923493,97377.0,97376.0,8.89e-06]
[1735846416716,0.48737332,97377.0,97376.0,8.89e-06]
[1735846422279,0.51924242,97377.0,97376.0,8.89e-06]
[1735846422524,0.5353134,97377.0,97376.0,8.89e-06]
[1735846429727,0.51924242,97377.0,97376.0,8.89e-06]
[1735846430928,0.4152561,97377.0,97376.0,8.89e-06]
[1735846432767,0.43132676,97377.0,97376.0,8.89e-06]
[1735846434399,0.4152561,97377.0,97376.0,8.89e-06]
[1735846435246,0.51924242,97377.0,97376.0,8.89e-06]
[1735846438708,0.0368691,97377.0,97376.0,0.08140889]
[1735846438930,0.0368691,97377.0,97376.0,0.43788421]
[1735846439160,0.0368691,97377.0,97376.0,0.44824545]
[1735846439370,0.14279341,97377.0,97376.0,1.94824545]
[1735846439604,0.14079341,97377.0,97376.0,1.94824545]
[1735846439789,0.14279341,97377.0,97376.0,2.14824545]
[1735846439966,0.01469341,97377.0,97376.0,2.14824545]
[1735846440179,0.01269341,97377.0,97376.0,2.14824545]
[1735846440872,0.000171,97379.0,97378.0,0.1]
[1735846441065,0.000171,97379.0,97378.0,0.20398632]
[1735846441897,0.000171,97379.0,97378.0,0.28548632]
[1735846442167,0.000171,97379.0,97378.0,0.29448632]
[1735846442168,0.001171,97379.0,97378.0,0.29448632]
[1735846442930,0.001171,97379.0,97378.0,1.79448632]
[1735846443332,0.002171,97379.0,97378.0,1.79448632]
[1735846447209,0.205288,97425.0,97401.0,0.329636]
[1735846447317,0.15,97424.0,97401.0,0.43362232]
[1735846447537,0.00031782,97402.0,97401.0,0.43362232]
[1735846447737,0.00031782,97402.0,97401.0,1.93362232]
[1735846447942,0.00031782,97402.0,97389.0,0.20536]
[1735846448158,0.00031782,97402.0,97390.0,0.0781]
[1735846448377,0.00031782,97402.0,97378.0,0.001]
[1735846448593,0.205362,97389.0,97376.0,8.89e-06]
[1735846448810,0.023,97398.0,97376.0,8.89e-06]
[1735846449027,0.023,97386.0,97376.0,8.89e-06]
[1735846449264,0.032,97379.0,97378.0,0.001]
[1735846449709,0.023,97379.0,97378.0,0.10398632]
[1735846450358,0.023,97379.0,97378.0,1.60398632]
[1735846450990,0.024,97379.0,97378.0,1.61698632]
[1735846452679,0.024,97379.0,97378.0,0.11698632]
[1735846453236,0.024,97379.0,97378.0,1.61698632]
[1735846453449,0.001,97379.0,97378.0,1.61698632]
[1735846453674,0.001,97379.0,97378.0,1.71698632]
[1735846453873,0.001,97379.0,97378.0,1.96274357]
[1735846454081,0.00031782,97402.0,97401.0,0.284736]
[1735846454286,0.00031782,97402.0,97401.0,0.38872232]
[1735846454695,0.00031782,97402.0,97401.0,1.88872232]
[1735846455095,0.00031782,97402.0,97401.0,1.5]
[1735846455294,0.00031782,97402.0,97390.0,0.0794]
[1735846455500,0.00031782,97402.0,97391.0,0.30934332]
[1735846455715,0.00031782,97402.0,97392.0,0.205355]
[1735846455908,0.00031782,97402.0,97393.0,0.10398632]
[1735846456323,0.00031782,97402.0,97394.0,0.205351]
[1735846456739,0.00031782,97402.0,97401.0,0.009]
[1735846456941,0.02331782,97402.0,97401.0,0.009]
[1735846457139,0.023,97401.0,97388.0,0.205363]
[1735846457370,0.00031782,97402.0,97394.0,0.009]
[1735846458182,0.02331782,97402.0,97389.0,0.205362]
[1735846458661,0.02331782,97402.0,97401.0,0.009]
[1735846459388,0.02331782,97402.0,97401.0,0.011]
[1735846459591,0.00031782,97402.0,97401.0,0.011]
[1735846459916,0.00031782,97402.0,97401.0,0.002]
[1735846460127,0.22865182,97402.0,97401.0,0.002]
[1735846460749,0.22865182,97402.0,97401.0,0.011]
[1735846461378,0.02331782,97402.0,97401.0,0.011]
[1735846463957,0.02331782,97402.0,97401.0,1.511]
[1735846466199,0.02331782,97402.0,97401.0,1.716336]
[1735846466370,0.02331782,97402.0,97401.0,1.511]
[1735846470100,0.02331782,97402.0,97401.0,0.011]
[1735846475388,0.00031782,97402.0,97401.0,0.19798632]
[1735846476046,0.00031782,97402.0,97401.0,1.69798632]
[1735846480733,0.00031782,97402.0,97401.0,0.011]
[1735846481387,0.24115733,97402.0,97401.0,0.011]
[1735846481586,0.45628,97380.0,97379.0,8.55e-05]
[1735846481806,0.56026632,97380.0,97379.0,8.55e-05]
[1735846482015,0.45628,97380.0,97379.0,8.55e-05]
[1735846482234,0.023,97380.0,97379.0,8.55e-05]
[1735846482979,0.22838,97380.0,97379.0,8.55e-05]
[1735846483220,0.22838,97380.0,97379.0,0.0010855]
[1735846483465,0.22838,97380.0,97379.0,0.0100855]
[1735846483701,0.22838,97380.0,97379.0,8.55e-05]
[1735846484103,0.22838,97380.0,97379.0,0.0070855]
[1735846484317,0.22838,97380.0,97379.0,8.55e-05]
[1735846485759,0.22938,97380.0,97379.0,0.0070855]
[1735846486344,0.26144332,97380.0,97379.0,0.0060855]
[1735846486764,0.22938,97380.0,97379.0,0.0070855]
[1735846490695,0.32150239,97380.0,97379.0,0.0070855]
[1735846492229,0.22938,97380.0,97379.0,0.0070855]
[1735846492648,0.024,97380.0,97379.0,0.0070855]
[1735846494176,0.024,97380.0,97379.0,0.2124685]
[1735846494822,0.024,97380.0,97379.0,0.0070855]
[1735846495663,0.024,97380.0,97379.0,1.5070855]
[1735846497737,0.024,97380.0,97379.0,0.0070855]
[1735846502479,0.024,97380.0,97379.0,1.5070855]
[1735846503541,0.024,97380.0,97379.0,0.0070855]
[1735846504213,0.024,97380.0,97379.0,1.5070855]
[1735846504994,0.024,97380.0,97379.0,0.0070855]
[1735846507193,0.174,97380.0,97379.0,0.0070855]
[1735846507419,0.2239,97380.0,97379.0,0.0070855]
[1735846510193,0.23416309,97380.0,97379.0,0.0070855]
[1735846510884,0.33814941,97380.0,97379.0,0.0070855]
[1735846511511,0.37015562,97380.0,97379.0,0.0070855]
[1735846511978,0.44535562,97380.0,97379.0,0.0070855]
[1735846513214,0.44435562,97380.0,97379.0,8.55e-05]
[1735846513441,0.44935562,97380.0,97379.0,8.55e-05]
[1735846513634,0.78595338,97380.0,97379.0,8.55e-05]
[1735846513781,0.78095338,97380.0,97379.0,8.55e-05]
[1735846514002,0.2792,97378.0,97377.0,8.55e-05]
[1735846514221,0.43819253,97378.0,97377.0,8.55e-05]
[1735846515113,0.44219253,97378.0,97377.0,8.55e-05]
[1735846515739,0.228395,97373.0,97372.0,0.06730103]
[1735846515943,0.51438753,97373.0,97372.0,0.06730103]
[1735846517249,0.49438753,97373.0,97372.0,0.06730103]
[1735846517474,0.49738753,97373.0,97372.0,0.06730103]
[1735846517688,0.39340121,97373.0,97372.0,0.06730103]
[1735846517937,0.18800621,97373.0,97372.0,0.06730103]
[1735846518136,0.75276186,97373.0,97372.0,0.06730103]
[1735846518439,0.75276186,97373.0,97372.0,1.56730103]
[1735846518651,0.77276186,97373.0,97372.0,1.56730103]
[1735846518879,0.87674818,97373.0,97372.0,0.06730103]
[1735846519093,0.97064197,97373.0,97372.0,0.06730103]
[1735846519308,0.43790608,97373.0,97372.0,0.06730103]
[1735846519518,0.43790608,97373.0,97372.0,0.06938653]
[1735846519725,0.43790608,97373.0,97372.0,0.06738653]
[1735846519939,0.44090608,97373.0,97372.0,0.06738653]
[1735846520290,0.43790608,97373.0,97372.0,0.06738653]
[1735846520513,0.44090608,97373.0,97372.0,0.06738653]
[1735846520933,0.44290608,97373.0,97372.0,0.06738653]
[1735846521132,0.54290608,97373.0,97372.0,0.06738653]
[1735846521539,0.54090608,97373.0,97372.0,0.06738653]
[1735846521735,0.86652465,97373.0,97372.0,0.06738653]
[1735846522141,0.87452465,97373.0,97372.0,0.06838653]
[1735846522340,0.87152465,97373.0,97372.0,0.06838653]
[1735846522550,1.32729599,97373.0,97372.0,0.06838653]
[1735846523033,1.22729599,97373.0,97372.0,0.06838653]
[1735846523954,1.50838173,97373.0,97372.0,0.06938653]
[1735846525238,0.77652465,97373.0,97372.0,0.06938653]